bitfinex/quotes_BTCUSD_20250518
["timestamp","ask_amount","ask_price","bid_price","bid_amount"]
[1747604904778,0.0296954,104540.0,104530.0,0.55118595]
[1747604905614,0.02013005,104540.0,104530.0,0.55118595]
[1747604905958,0.02012996,104540.0,104530.0,0.56688595]
[1747604906886,0.02969521,104540.0,104530.0,0.56688595]
[1747604907103,0.02969512,104540.0,104530.0,0.43474448]
[1747604907293,0.24014095,104540.0,104530.0,0.43474448]
[1747604907581,0.24264547,104540.0,104530.0,0.01347261]
[1747604908980,0.20089907,104530.0,104520.0,0.23352436]
[1747604909200,0.24166515,104530.0,104520.0,0.33083376]
[1747604909619,0.22666515,104530.0,104520.0,0.33083376]
[1747604910129,0.22666515,104530.0,104520.0,0.33183376]
[1747604910984,0.21709907,104530.0,104520.0,0.33183376]
[1747604911167,0.22303263,104530.0,104520.0,0.01447261]
[1747604911396,0.22303263,104530.0,104520.0,0.21559261]
[1747604911631,0.22303263,104530.0,104520.0,0.01647261]
[1747604911845,0.32034203,104530.0,104520.0,0.01647261]
[1747604912512,0.21052547,104500.0,104490.0,0.65540065]
[1747604912675,0.21052574,104500.0,104490.0,0.75271005]
[1747604913260,0.21052574,104500.0,104490.0,0.76227988]
[1747604913462,0.22672574,104500.0,104490.0,0.64583073]
[1747604913667,0.22672574,104500.0,104490.0,0.65587301]
[1747604913908,0.21052574,104500.0,104490.0,0.66544284]
[1747604914487,0.21052574,104500.0,104490.0,0.66744229]
[1747604914707,0.21052574,104500.0,104490.0,0.67044229]
[1747604915112,0.21052574,104500.0,104490.0,0.6431734]
[1747604917018,0.21052574,104500.0,104490.0,0.62403383]
[1747604917227,0.21052574,104500.0,104490.0,0.6431734]
[1747604917427,0.01913792,104500.0,104490.0,0.6431734]
[1747604917608,0.02870711,104500.0,104490.0,0.64317285]
[1747604917927,0.03827639,104500.0,104490.0,0.64317285]
[1747604921805,0.04784576,104500.0,104490.0,0.64317285]
[1747604922982,0.04784576,104500.0,104490.0,0.00547236]
[1747604922983,0.2426262,104500.0,104490.0,0.00547236]
[1747604923397,0.5826262,104500.0,104490.0,0.00547236]
[1747604923686,0.6799356,104500.0,104490.0,0.00547236]
[1747604924060,0.6799356,104500.0,104490.0,0.00347236]
[1747604924334,0.6799356,104500.0,104490.0,0.00447236]
[1747604924533,0.0321,104500.0,104490.0,0.00447236]
[1747604924734,0.05063627,104510.0,104500.0,0.22009466]
[1747604924857,0.0335,104530.0,104520.0,0.22005246]
[1747604925063,0.002,104530.0,104520.0,0.51852186]
[1747604925275,0.23159749,104530.0,104520.0,0.2984694]
[1747604925480,0.02113243,104530.0,104520.0,0.49938787]
[1747604925687,0.04026449,104530.0,104520.0,0.5280894]
[1747604925898,0.04983168,104530.0,104520.0,0.52808958]
[1747604926164,0.23159823,104530.0,104520.0,0.5185225]
[1747604926324,0.23159823,104530.0,104520.0,0.51852259]
[1747604926519,0.22403206,104530.0,104520.0,0.51852268]
[1747604926985,0.22403206,104530.0,104520.0,0.0973094]
[1747604927209,0.2459658,104530.0,104520.0,0.20116]
[1747604927412,0.24272584,104500.0,104490.0,0.02774125]
[1747604928292,0.68003524,104500.0,104490.0,0.02774125]
[1747604928875,0.68003524,104500.0,104490.0,0.02874125]
[1747604929080,0.68003524,104500.0,104490.0,0.00047236]
[1747604930674,0.68203524,104500.0,104490.0,0.00047236]
[1747604930880,0.34203524,104500.0,104490.0,0.00047236]
[1747604931092,0.002,104500.0,104490.0,0.3178974]
[1747604931307,0.002,104500.0,104490.0,0.68763825]
[1747604931520,0.002,104500.0,104490.0,0.6892974]
[1747604931754,0.22209402,104500.0,104490.0,0.72021758]
[1747604931959,0.2296633,104500.0,104490.0,0.71064784]
[1747604932165,0.24162593,104500.0,104490.0,0.20167236]
[1747604932376,0.24162593,104500.0,104490.0,0.20267236]
[1747604932596,0.58162593,104500.0,104490.0,0.00547236]
[1747604933046,0.20095665,104500.0,104490.0,0.00547236]
[1747604933257,0.20787497,104530.0,104510.0,0.21050478]
[1747604933258,0.01156644,104530.0,104510.0,0.21050478]
[1747604933459,0.05223243,104530.0,104520.0,0.2012]
[1747604933667,0.2380315,104530.0,104520.0,0.41168556]
[1747604933871,0.002,104530.0,104520.0,0.47711806]
[1747604934085,0.002,104530.0,104520.0,0.32406382]
[1747604934293,0.002,104530.0,104520.0,0.52498193]
[1747604934472,0.002,104530.0,104520.0,0.72610193]
[1747604934651,0.004,104530.0,104520.0,0.72610193]
[1747604935064,0.005,104530.0,104520.0,0.72610193]
[1747604935287,0.03169879,104530.0,104520.0,0.71067812]
[1747604935500,0.03369879,104530.0,104520.0,0.7298122]
[1747604935702,0.24706543,104530.0,104520.0,0.21133034]
[1747604935906,0.24606543,104530.0,104520.0,0.21133034]
[1747604936379,0.24606543,104530.0,104520.0,0.21333034]
[1747604936600,1.10407596,104530.0,104520.0,0.01213034]
[1747604936757,1.07287865,104530.0,104520.0,0.01213034]
[1747604937280,1.07287865,104530.0,104520.0,0.002]
[1747604937480,1.07287865,104530.0,104490.0,0.42166704]
[1747604937481,0.22009402,104500.0,104490.0,0.42166704]
[1747604937688,0.02870647,104500.0,104490.0,0.43123669]
[1747604937887,0.23923267,104500.0,104490.0,0.43123687]
[1747604938105,0.22966412,104500.0,104490.0,0.43123687]
[1747604938945,0.01913554,104510.0,104500.0,0.22009402]
[1747604939173,0.0336,104530.0,104510.0,0.2105057]
[1747604939444,0.03069869,104530.0,104520.0,0.22961981]
[1747604939659,0.0402643,104530.0,104520.0,0.44026671]
[1747604939862,0.24116347,104530.0,104520.0,0.40199847]
[1747604940069,0.21246561,104530.0,104520.0,0.43070036]
[1747604940218,0.0306985,104530.0,104520.0,0.44026726]
[1747604940420,0.2411643,104530.0,104520.0,0.43070036]
[1747604940617,0.22203178,104530.0,104520.0,0.41156592]
[1747604941049,0.20289926,104530.0,104520.0,0.21064754]
[1747604941246,0.19333263,104530.0,104520.0,0.20108]
[1747604942625,0.22543263,104530.0,104520.0,0.20108]
[1747604942842,0.22543263,104530.0,104500.0,0.52861422]
[1747604942843,0.2426057,104510.0,104500.0,0.21121034]
[1747604943051,0.2426057,104510.0,104500.0,0.20108]
[1747604943562,0.3399151,104510.0,104500.0,0.20108]
[1747604943770,0.23195674,104500.0,104490.0,0.01397719]
[1747604944534,0.00956919,104500.0,104490.0,0.20538306]
[1747604944749,0.22266754,104520.0,104500.0,0.20095674]
[1747604944957,0.23625236,104520.0,104510.0,0.21050607]
[1747604945166,0.40947263,104530.0,104520.0,0.21048556]
[1747604945167,0.03069915,104530.0,104520.0,0.21048556]
[1747604945376,0.01156589,104530.0,104520.0,0.22005246]
[1747604945582,0.04026449,104530.0,104520.0,0.22005246]
[1747604945796,0.21048537,104520.0,104510.0,0.51283184]
[1747604946002,0.19135093,104520.0,104510.0,0.21458483]
[1747604946207,0.71558954,104520.0,104510.0,0.01350483]
[1747604946418,0.66096033,104520.0,104510.0,0.01350483]
[1747604946623,0.22365093,104520.0,104510.0,0.01350483]
[1747604947028,0.22565093,104520.0,104510.0,0.01350483]
[1747604947440,0.22465093,104520.0,104510.0,0.01350483]
[1747604947858,0.22265093,104520.0,104510.0,0.01350483]
[1747604948971,0.2009377,104510.0,104500.0,0.01969981]
[1747604949324,0.2009377,104510.0,104500.0,0.01013044]
[1747604949533,0.2009377,104510.0,104500.0,0.01969981]
[1747604949963,0.2009377,104510.0,104500.0,0.01013044]
[1747604950378,0.2009377,104510.0,104500.0,0.02069981]
[1747604950824,0.21050588,104510.0,104500.0,0.03126909]
[1747604951241,0.2009377,104510.0,104500.0,0.20351799]
[1747604951388,0.21050588,104510.0,104500.0,0.2322251]
[1747604952285,0.02870436,104510.0,104500.0,0.23222501]
[1747604952527,0.02870436,104510.0,104500.0,0.2322252]
[1747604952528,0.00956763,104510.0,104500.0,0.2322252]
[1747604952722,0.25135328,104520.0,104510.0,0.2009377]
[1747604952924,0.25135328,104520.0,104510.0,0.22007434]
[1747604953448,0.21050533,104510.0,104500.0,0.31896586]
[1747604953652,0.20093742,104510.0,104500.0,0.31796586]
[1747604954070,0.19136924,104510.0,104500.0,0.10743984]
[1747604954708,0.19136924,104510.0,104500.0,0.10843984]
[1747604955076,0.19136924,104510.0,104500.0,0.10943984]
[1747604956011,0.20736924,104510.0,104500.0,0.10943984]
[1747604956336,0.22356924,104510.0,104500.0,0.01213044]
[1747604956664,0.64097237,104510.0,104500.0,0.01213044]
[1747604956873,0.73828177,104510.0,104500.0,0.01213044]
[1747604957490,0.73828177,104510.0,104500.0,0.01113044]
[1747604957691,0.73928177,104510.0,104500.0,0.01013044]
[1747604958511,0.57145674,104500.0,104490.0,0.00047236]
[1747604960628,0.57345674,104500.0,104490.0,0.00047236]
[1747604965030,0.67076614,104500.0,104490.0,0.00047236]
[1747604968278,0.87168614,104500.0,104490.0,0.00047236]
[1747604970188,0.88586371,104500.0,104490.0,0.00047236]
[1747604971667,0.88582371,104500.0,104490.0,0.00047236]
[1747604975211,1.18551669,104500.0,104490.0,0.00047236]
[1747604975761,1.20005754,104500.0,104490.0,0.00047236]
[1747604977584,1.40097754,104500.0,104490.0,0.00047236]
[1747604983500,1.44907754,104500.0,104490.0,0.00047236]
[1747604985260,2.13687754,104500.0,104490.0,0.00047236]
[1747604985487,1.83718456,104500.0,104490.0,0.00047236]
[1747604985714,2.23418694,104500.0,104490.0,0.00047236]
[1747604989529,2.24418694,104500.0,104490.0,0.00047236]
[1747604994489,0.20103369,104460.0,104450.0,0.03159177]
[1747604994729,0.20103369,104460.0,104450.0,0.03173343]
[1747604995191,0.20103369,104460.0,104450.0,0.03835574]
[1747604995361,0.21055966,104460.0,104450.0,0.03835574]
[1747604995787,0.21055966,104460.0,104450.0,0.04235574]
[1747604996381,0.21055966,104460.0,104450.0,0.03935574]
[1747604996592,0.21055966,104460.0,104450.0,0.04035574]
[1747604996837,0.21055966,104460.0,104450.0,0.03429441]
[1747604997036,0.21055966,104460.0,104450.0,0.01889441]
[1747604999055,0.21055966,104460.0,104450.0,0.01871814]
[1747604999267,0.21055966,104460.0,104450.0,0.00876397]
[1747605008454,0.32416906,104460.0,104450.0,0.00876397]
[1747605008955,0.30786906,104460.0,104450.0,0.00876397]
[1747605009352,0.21055966,104460.0,104450.0,0.00876397]
[1747605012736,0.20103369,104460.0,104450.0,0.02426397]
[1747605015423,0.21060645,104460.0,104450.0,0.225317]
[1747605015876,0.20103369,104460.0,104450.0,0.02426397]
[1747605016078,0.19146084,104460.0,104450.0,0.02426397]
[1747605016686,0.19146084,104460.0,104450.0,0.0377688]
[1747605018218,0.19146084,104460.0,104450.0,0.0222688]
[1747605018402,0.19146084,104460.0,104450.0,0.03041321]
[1747605030036,0.20646084,104460.0,104450.0,0.03041321]
[1747605030459,0.22216084,104460.0,104450.0,0.03041321]
[1747605030689,0.20646084,104460.0,104450.0,0.03041321]
[1747605030877,0.22216084,104460.0,104450.0,0.03041321]
[1747605033145,0.56216084,104460.0,104450.0,0.03041321]
[1747605034796,0.56216084,104460.0,104450.0,0.01690838]
[1747605036856,0.56216084,104460.0,104450.0,0.00590927]
[1747605052159,0.76252084,104460.0,104450.0,0.00590927]
[1747605052364,0.76452084,104460.0,104450.0,0.00590927]
[1747605052731,0.76652084,104460.0,104450.0,0.00590927]
[1747605062911,0.86383024,104460.0,104450.0,0.00590927]
[1747605064553,1.06058423,104460.0,104450.0,0.00590927]
[1747605066478,1.07512508,104460.0,104450.0,0.00590927]
[1747605067389,1.27187907,104460.0,104450.0,0.00590927]
[1747605069101,1.27187907,104460.0,104440.0,0.102]
[1747605069323,0.86771013,104450.0,104440.0,0.10209054]
[1747605069518,0.86531633,104450.0,104440.0,0.10209054]
[1747605070966,0.86631633,104450.0,104440.0,0.11023823]
[1747605071595,0.66956234,104450.0,104440.0,0.11023823]
[1747605073751,0.68410319,104450.0,104440.0,0.11023823]
[1747605073882,0.97816658,104450.0,104440.0,0.11023823]
[1747605074578,0.97816658,104450.0,104440.0,0.10209054]
[1747605074737,1.08117718,104450.0,104440.0,0.10209054]
[1747605075770,1.08517718,104450.0,104440.0,0.10209054]
[1747605076767,1.08417718,104450.0,104440.0,0.10209054]
[1747605077715,1.08717718,104450.0,104440.0,0.10209054]
[1747605078891,1.28393117,104450.0,104440.0,0.10209054]
[1747605079093,1.4686437,104450.0,104440.0,0.10209054]
[1747605079300,1.4973917,104450.0,104440.0,0.10209054]
[1747605080117,0.5735722,104440.0,104430.0,0.1]
[1747605080354,1.26450958,104440.0,104430.0,0.1]
[1747605081445,1.26750958,104440.0,104430.0,0.1]
[1747605081666,1.29203547,104440.0,104430.0,0.1]
[1747605081871,1.09391547,104440.0,104430.0,0.1]
[1747605082070,1.49439547,104440.0,104430.0,0.1]
[1747605082709,1.46986958,104440.0,104430.0,0.1]
[1747605084286,2.15766958,104440.0,104430.0,0.1]
[1747605084506,2.1718,104440.0,104430.0,0.1]
[1747605086857,2.2691094,104440.0,104430.0,0.1]
[1747605090160,1.1808294,104440.0,104430.0,0.1]
[1747605090362,1.5808694,104440.0,104430.0,0.1]
[1747605091558,1.48356,104440.0,104430.0,0.0981]
[1747605092598,1.49810085,104440.0,104430.0,0.0981]
[1747605093246,1.69485484,104440.0,104430.0,0.0981]
[1747605093406,1.49810085,104440.0,104430.0,0.0981]
[1747605094044,1.50810085,104440.0,104430.0,0.0981]
[1747605094246,1.79216424,104440.0,104430.0,0.06879244]
[1747605094554,0.59663229,104430.0,104420.0,0.102]
[1747605094760,1.08744967,104430.0,104420.0,0.10214181]
[1747605095376,1.09744967,104430.0,104420.0,0.05426946]
[1747605095608,1.19475907,104430.0,104420.0,0.04807946]
[1747605095796,1.19475907,104430.0,104420.0,0.00206235]
[1747605096589,1.19475907,104430.0,104410.0,0.1]
[1747605096590,0.60665155,104420.0,104410.0,0.1]
[1747605096743,0.60665155,104420.0,104410.0,0.02858]
[1747605096744,1.73232292,104420.0,104410.0,0.02858]
[1747605096947,1.75684881,104420.0,104410.0,0.020657]
[1747605097201,1.84415819,104420.0,104410.0,0.00333043]
[1747605097399,0.63119671,104410.0,104400.0,0.00094808]
[1747605097633,1.53561409,104410.0,104400.0,0.00094808]
[1747605097838,1.54983293,104410.0,104400.0,0.00094808]
[1747605098206,0.01,104400.0,104380.0,0.002]
[1747605098430,1.31847326,104390.0,104380.0,0.002]
[1747605098603,1.34029647,104390.0,104380.0,0.002]
[1747605099013,1.54658171,104390.0,104380.0,0.00045441]
[1747605099238,0.59752873,104370.0,104360.0,0.002]
[1747605099439,1.7581194,104370.0,104360.0,0.002]
[1747605099652,1.85547593,104370.0,104360.0,0.002]
[1747605099838,1.86897993,104370.0,104360.0,0.002]
[1747605100215,1.88897993,104370.0,104360.0,0.002]
[1747605100416,1.90358624,104370.0,104360.0,0.002]
[1747605100614,1.91058624,104370.0,104360.0,0.002]
[1747605101413,0.55082829,104350.0,104340.0,0.002]
[1747605101620,1.55182855,104350.0,104340.0,0.002]
[1747605101828,1.51507586,104350.0,104340.0,0.002]
[1747605102038,1.43533298,104350.0,104340.0,0.002]
[1747605102260,1.44987383,104350.0,104340.0,0.002]
[1747605102645,1.45987383,104350.0,104340.0,0.002]
[1747605102905,1.44987383,104350.0,104340.0,0.003]
[1747605103118,1.54718323,104350.0,104340.0,0.003]
[1747605103326,1.49112994,104350.0,104340.0,0.003]
[1747605103529,1.50112994,104350.0,104340.0,0.003]
[1747605104405,1.40382054,104350.0,104340.0,0.003]
[1747605106222,1.40382054,104350.0,104340.0,0.002]
[1747605106463,1.70552254,104350.0,104340.0,0.002]
[1747605106688,1.70452254,104350.0,104340.0,0.002]
[1747605107125,1.70752254,104350.0,104340.0,0.002]
[1747605107341,1.80483194,104350.0,104340.0,0.002]
[1747605108236,1.80483194,104350.0,104340.0,0.00188333]
[1747605108905,1.50612994,104350.0,104340.0,0.00188333]
[1747605109309,1.51612994,104350.0,104340.0,0.00188333]
[1747605110438,1.41882054,104350.0,104340.0,0.00188333]
[1747605111203,0.56540955,104330.0,104320.0,0.002]
[1747605111429,1.19612095,104330.0,104320.0,0.002]
[1747605111644,1.61000095,104330.0,104320.0,0.002]
[1747605111874,1.79357845,104330.0,104320.0,0.002]
[1747605112140,0.56544998,104310.0,104300.0,0.01869149]
[1747605112361,1.70686338,104310.0,104300.0,0.01869149]
[1747605112560,1.82036667,104310.0,104300.0,0.01916438]
[1747605112773,1.87891705,104310.0,104300.0,0.01916438]
[1747605112979,1.88848341,104310.0,104300.0,0.01916438]
[1747605113199,1.89848341,104310.0,104300.0,0.01916438]
[1747605113874,1.90148341,104310.0,104300.0,0.01916438]
[1747605114078,1.49128341,104310.0,104300.0,0.01916438]
[1747605114281,1.78425403,104310.0,104300.0,0.01916438]
[1747605114460,1.38397403,104310.0,104300.0,0.01916438]
[1747605114817,1.03609235,104310.0,104300.0,0.01916438]
[1747605115026,1.03609235,104310.0,104300.0,0.02567291]
[1747605115228,1.37809235,104310.0,104300.0,0.02567291]
[1747605115438,1.07739035,104310.0,104300.0,0.02567291]
[1747605115650,1.37809235,104310.0,104300.0,0.02567291]
[1747605116892,1.47540175,104310.0,104300.0,0.02567291]
[1747605117098,1.37809235,104310.0,104300.0,0.02567291]
[1747605117640,1.7250352,104310.0,104300.0,0.02567291]
[1747605118086,0.59719043,104290.0,104280.0,0.002]
[1747605118291,1.37295699,104290.0,104280.0,0.00214182]
[1747605118494,1.07225499,104290.0,104280.0,0.00214182]
[1747605118699,1.16956439,104290.0,104280.0,0.00214182]
[1747605118928,1.63748958,104290.0,104280.0,0.00214182]
[1747605119138,1.10014018,104290.0,104280.0,0.00214182]
[1747605119377,1.54006018,104290.0,104280.0,0.00214182]
[1747605119887,1.48322183,104290.0,104280.0,0.00214182]
[1747605121405,1.48262183,104290.0,104280.0,0.00214182]
[1747605124171,1.51157499,104290.0,104280.0,0.00214182]
[1747605124400,1.63676958,104290.0,104280.0,0.00214182]
[1747605125253,1.57993123,104290.0,104280.0,0.00214182]
[1747605125722,1.60888439,104290.0,104280.0,0.00214182]
[1747605126592,1.51157499,104290.0,104280.0,0.00214182]
[1747605126794,1.81227699,104290.0,104280.0,0.00214182]
[1747605126961,0.51169204,104270.0,104260.0,0.002]
[1747605127226,0.60900144,104270.0,104260.0,0.00247344]
[1747605127658,0.94900144,104270.0,104260.0,0.00247344]
[1747605128090,0.94900144,104270.0,104260.0,0.01060733]
[1747605128315,1.04731084,104270.0,104260.0,0.01560733]
[1747605128497,0.98160144,104270.0,104260.0,0.01560733]
[1747605129177,0.96600144,104270.0,104260.0,0.01960733]
[1747605129979,1.17076144,104270.0,104260.0,0.01960733]
[1747605130156,1.08789944,104270.0,104260.0,0.01960733]
[1747605130565,1.08789944,104270.0,104260.0,0.02608454]
[1747605131526,1.18520884,104270.0,104260.0,0.02608454]
[1747605132822,1.53225169,104270.0,104260.0,0.02608454]
[1747605133044,1.41904229,104270.0,104260.0,0.02608454]
[1747605134035,1.43534229,104270.0,104260.0,0.02608454]
[1747605134575,1.41904229,104270.0,104260.0,0.02608454]
[1747605134854,1.41904229,104270.0,104260.0,0.01960733]
[1747605136116,1.43404229,104270.0,104260.0,0.01960733]
[1747605136342,1.53135169,104270.0,104260.0,0.01960733]
[1747605136978,1.43404229,104270.0,104260.0,0.01960733]
[1747605137896,0.01918915,104220.0,104210.0,0.10997885]
[1747605138111,0.01918915,104220.0,104210.0,0.20743017]
[1747605138311,0.01918915,104220.0,104210.0,0.21492312]
[1747605138665,0.21109089,104220.0,104210.0,0.21492312]
[1747605138896,0.22068542,104220.0,104210.0,0.22451857]
[1747605139253,0.22168542,104220.0,104210.0,0.23651857]
[1747605139684,0.20249664,104220.0,104210.0,0.11694427]
[1747605139905,0.21577392,104220.0,104210.0,0.01963487]
[1747605140133,0.02879244,104190.0,104180.0,0.04798315]
[1747605140345,0.02879188,104190.0,104180.0,0.26835272]
[1747605140560,0.03838973,104190.0,104180.0,0.02893797]
[1747605140737,0.21115242,104190.0,104180.0,0.00014195]
[1747605140999,0.21115242,104190.0,104180.0,0.12895002]
[1747605141204,0.01919542,104190.0,104180.0,0.1385486]
[1747605141408,0.21215242,104190.0,104180.0,0.1415487]
[1747605141831,0.192957,104190.0,104180.0,0.12235135]
[1747605142037,0.192957,104190.0,104180.0,0.15852707]
[1747605142248,0.192957,104190.0,104180.0,0.12235135]
[1747605142674,0.193957,104190.0,104180.0,0.12235135]
[1747605142884,0.193957,104190.0,104180.0,0.02504195]
[1747605142885,0.192957,104190.0,104180.0,0.02504195]
[1747605143093,0.192957,104190.0,104180.0,0.02204195]
[1747605143302,0.526957,104190.0,104180.0,0.00014195]
[1747605143511,0.60536013,104190.0,104180.0,0.00114195]
[1747605143933,0.60436013,104190.0,104180.0,0.00014195]
[1747605144142,0.89360013,104190.0,104180.0,0.00014195]
[1747605144355,1.32311153,104190.0,104180.0,0.00114195]
[1747605144562,1.32411153,104190.0,104180.0,0.00114195]
[1747605144983,1.02123685,104190.0,104180.0,0.00014195]
[1747605145194,1.24453572,104190.0,104180.0,0.00014195]
[1747605145416,1.56077857,104190.0,104180.0,0.00114195]
[1747605145627,1.55977857,104190.0,104180.0,0.00014195]
[1747605145836,0.95837457,104190.0,104180.0,0.00014195]
[1747605146058,1.65708797,104190.0,104180.0,0.00014195]
[1747605146274,0.58169258,104170.0,104160.0,0.00919149]
[1747605146485,0.67900198,104170.0,104160.0,0.00933329]
[1747605146710,0.97970398,104170.0,104160.0,0.00933329]
[1747605146957,1.07701338,104170.0,104160.0,0.00933329]
[1747605147175,0.99424483,104170.0,104160.0,0.00933329]
[1747605147795,1.29694683,104170.0,104160.0,0.00933329]
[1747605148023,1.29694683,104170.0,104160.0,0.00165802]
[1747605148323,0.58665356,104160.0,104150.0,0.0155772]
[1747605148534,1.28536696,104160.0,104150.0,0.01605072]
[1747605148917,1.28536696,104160.0,104150.0,0.00837545]
[1747605149352,1.28536696,104160.0,104150.0,0.00070018]
[1747605149562,1.29336696,104160.0,104150.0,0.00070018]
[1747605149769,0.88817492,104150.0,104140.0,0.002]
[1747605149977,0.98548432,104150.0,104140.0,0.002]
[1747605151017,0.68478232,104150.0,104140.0,0.002]
[1747605151467,0.68778232,104150.0,104140.0,0.002]
[1747605151689,0.98848432,104150.0,104140.0,0.002]
[1747605152205,0.68778232,104150.0,104140.0,0.002]
[1747605152686,0.98848432,104150.0,104140.0,0.002]
[1747605152927,0.97594347,104150.0,104140.0,0.002]
[1747605153163,0.32894272,104150.0,104140.0,0.002]
[1747605153404,0.96964472,104150.0,104140.0,0.002]
[1747605154104,0.31354272,104150.0,104140.0,0.002]
[1747605154353,0.31354272,104150.0,104140.0,0.22285569]
[1747605154354,0.01460125,104150.0,104140.0,0.22285569]
[1747605154588,0.03380367,104150.0,104140.0,0.23745569]
[1747605154820,0.02420177,104150.0,104140.0,0.2470575]
[1747605155055,0.02420149,104150.0,104140.0,0.2543575]
[1747605155315,0.01967178,104160.0,104150.0,0.23543439]
[1747605155561,0.01007107,104160.0,104150.0,0.24503528]
[1747605155798,0.01007107,104160.0,104150.0,0.25233528]
[1747605156098,0.1919885,104180.0,104150.0,0.25233528]
[1747605156099,0.00959849,104180.0,104170.0,0.01919892]
[1747605156327,0.0191967,104180.0,104170.0,0.02879796]
[1747605156549,0.02879528,104180.0,104170.0,0.02879796]
[1747605156794,0.02879418,104180.0,104170.0,0.24269181]
[1747605157013,0.03839267,104180.0,104170.0,0.24269181]
[1747605157241,0.02879418,104180.0,104170.0,0.24269181]
[1747605157468,0.03839249,104180.0,104170.0,0.24269181]
[1747605157999,0.03839249,104180.0,104170.0,0.25070385]
[1747605158218,0.04799089,104180.0,104170.0,0.25070385]
[1747605158442,0.03839295,104180.0,104170.0,0.25070385]
[1747605158657,0.03839295,104180.0,104170.0,0.23710385]
[1747605158860,0.04799153,104180.0,104170.0,0.22980385]
[1747605159075,0.03939295,104180.0,104170.0,0.23180385]
[1747605159303,0.03939415,104180.0,104170.0,0.23180422]
[1747605159516,0.03939415,104180.0,104170.0,0.24140335]
[1747605159728,0.03939415,104180.0,104170.0,0.25100239]
[1747605160212,0.03839415,104180.0,104170.0,0.24900239]
[1747605160462,0.03939415,104180.0,104170.0,0.25200239]
[1747605160705,0.21217286,104180.0,104170.0,0.01201204]
[1747605161199,0.001,104180.0,104170.0,0.2232048]
[1747605161436,0.02019643,104180.0,104170.0,0.24240316]
[1747605161639,0.02979492,104180.0,104170.0,0.24240316]
[1747605161843,0.02019643,104180.0,104170.0,0.24240316]
[1747605162269,0.2217708,104180.0,104170.0,0.21360549]
[1747605162478,0.02019634,104180.0,104170.0,0.23280385]
[1747605162693,0.21217231,104180.0,104170.0,0.01201204]
[1747605162910,0.21217231,104180.0,104170.0,0.23280431]
[1747605162911,0.02019634,104180.0,104170.0,0.23280431]
[1747605163127,0.03939341,104180.0,104170.0,0.24240344]
[1747605163340,0.04899218,104180.0,104170.0,0.25740344]
[1747605163896,0.22177126,104180.0,104170.0,0.23820508]
[1747605164130,0.21217286,104180.0,104170.0,0.03661154]
[1747605164370,0.21217286,104180.0,104170.0,0.02701204]
[1747605164602,0.21217286,104180.0,104170.0,0.03661154]
[1747605164842,0.21217286,104180.0,104170.0,0.04621095]
[1747605165088,0.02019744,104180.0,104170.0,0.24780393]
[1747605165283,0.02019744,104180.0,104170.0,0.25740335]
[1747605165572,0.21217286,104180.0,104170.0,0.22860539]
[1747605165989,0.21217286,104180.0,104170.0,0.2382048]
[1747605166200,0.28957599,104180.0,104170.0,0.22860558]
[1747605166383,0.28957599,104180.0,104170.0,0.24780468]
[1747605166839,0.28957599,104180.0,104170.0,0.25740409]
[1747605167047,0.21217286,104180.0,104170.0,0.25740409]
[1747605167257,0.21217286,104180.0,104170.0,0.26700341]
[1747605167516,0.0105984,104180.0,104170.0,0.26700276]
[1747605167726,0.0297951,104180.0,104170.0,0.27332347]
[1747605167942,0.01059794,104180.0,104170.0,0.27332347]
[1747605168141,0.02019606,104180.0,104170.0,0.27332347]
[1747605168347,0.02979437,104180.0,104170.0,0.27332347]
[1747605168570,0.03939286,104180.0,104170.0,0.27332347]
[1747605168777,0.02019606,104180.0,104170.0,0.27332347]
[1747605169007,0.02019615,104180.0,104170.0,0.27332347]
[1747605169215,0.02979455,104180.0,104170.0,0.27332347]
[1747605169738,0.02019615,104180.0,104170.0,0.27332347]
[1747605170168,0.01059803,104180.0,104170.0,0.27332347]
[1747605170393,0.001,104180.0,104170.0,0.27332347]
[1747605171570,0.001,104180.0,104170.0,0.39253287]
[1747605171769,0.001,104180.0,104170.0,0.4045071]
[1747605172002,0.001,104180.0,104170.0,0.39253287]
[1747605172218,0.001,104180.0,104170.0,0.38621216]
[1747605172663,0.001,104180.0,104170.0,1.23491284]
[1747605172877,0.001,104180.0,104170.0,1.60067284]
[1747605173110,0.001,104180.0,104170.0,1.62736586]
[1747605174218,0.003,104190.0,104180.0,0.22077061]
[1747605174433,0.003,104190.0,104180.0,0.84868069]
[1747605175315,0.03179188,104190.0,104180.0,0.84868069]
[1747605175550,0.03179179,104190.0,104180.0,0.84868069]
[1747605175756,0.004,104190.0,104180.0,0.84868069]
[1747605175984,0.004,104190.0,104180.0,0.87007228]
[1747605176374,0.004,104190.0,104180.0,0.8794922]
[1747605176597,0.004,104190.0,104180.0,1.6414922]
[1747605176815,0.004,104190.0,104180.0,1.68272745]
[1747605177528,0.003,104190.0,104180.0,1.68272745]
[1747605178030,0.003,104190.0,104180.0,1.68872745]
[1747605178031,0.004,104190.0,104180.0,1.68872745]
[1747605178276,0.004,104190.0,104180.0,1.18002677]
[1747605178494,0.005,104190.0,104180.0,1.69572745]
[1747605178984,0.004,104190.0,104180.0,1.68872745]
[1747605179207,0.005,104190.0,104180.0,1.69672745]
[1747605179430,0.005,104190.0,104180.0,1.67003305]
[1747605179646,0.005,104190.0,104180.0,1.68332239]
[1747605179883,0.002,104210.0,104200.0,0.58072824]
[1747605180131,0.002,104230.0,104220.0,0.59522673]
[1747605180365,0.07740313,104260.0,104250.0,0.22062238]
[1747605180603,0.002,104270.0,104260.0,0.52174716]
[1747605181080,0.07740313,104280.0,104270.0,0.22058006]
[1747605181295,0.09705265,104280.0,104270.0,0.521726]
[1747605181525,0.07787491,104280.0,104270.0,0.22058006]
[1747605182201,0.02977035,104270.0,104260.0,0.00801204]
[1747605182419,0.21199023,104270.0,104260.0,0.00801204]
[1747605182623,0.02877329,104260.0,104250.0,0.98278229]
[1747605182870,0.03836451,104260.0,104250.0,1.08968337]
[1747605183081,0.03836377,104260.0,104250.0,1.08968337]
[1747605183289,0.02877255,104260.0,104250.0,1.08968337]
[1747605183500,0.01918142,104260.0,104250.0,1.08968337]
[1747605183916,0.02877245,104260.0,104250.0,1.09769225]
[1747605184057,0.03836358,104260.0,104250.0,1.09769225]
[1747605184268,0.0479548,104260.0,104250.0,1.09769225]
[1747605184714,0.03836358,104260.0,104250.0,1.09769225]
[1747605184897,0.02877245,104260.0,104250.0,1.09869225]
[1747605185089,0.03936367,104260.0,104250.0,1.09869225]
[1747605185296,0.04895498,104260.0,104250.0,1.09869225]
[1747605185705,0.03936367,104260.0,104250.0,1.09869225]
[1747605185891,0.04895498,104260.0,104250.0,1.09869225]
[1747605186735,0.02018142,104260.0,104250.0,1.09869225]
[1747605186947,0.02977245,104260.0,104250.0,1.09869225]
[1747605187440,0.22160131,104260.0,104250.0,0.77116888]